bitfinex/quotes_BTCUSD_20250830
["timestamp","ask_amount","ask_price","bid_price","bid_amount"]
[1756592983627,0.50727725,108760.0,108750.0,0.61526453]
[1756592987601,0.29657381,108760.0,108750.0,0.61526453]
[1756592987810,0.48046494,108760.0,108750.0,0.61526453]
[1756592989335,0.48046494,108760.0,108750.0,0.27871649]
[1756592989479,0.48046494,108760.0,108750.0,0.43135649]
[1756592990338,0.48046494,108760.0,108750.0,0.61526453]
[1756592991807,0.51704647,108760.0,108750.0,0.61526453]
[1756592998177,0.51704647,108760.0,108750.0,0.61626453]
[1756593000473,0.22047266,108760.0,108750.0,0.61626453]
[1756593000678,0.51704647,108760.0,108750.0,0.61626453]
[1756593001248,0.53431188,108760.0,108750.0,0.61626453]
[1756593002340,0.83088569,108760.0,108750.0,0.18152648]
[1756593002544,0.83735959,108760.0,108750.0,0.33416648]
[1756593003186,0.83735959,108760.0,108750.0,0.33717648]
[1756593003461,0.83735803,108760.0,108750.0,0.33717648]
[1756593004404,0.83735803,108760.0,108750.0,0.18152648]
[1756593004609,0.83735803,108760.0,108750.0,0.33416648]
[1756593006871,0.83734701,108760.0,108750.0,0.33416648]
[1756593007755,0.83734663,108760.0,108750.0,0.33416648]
[1756593008760,0.83734663,108760.0,108750.0,0.33717648]
[1756593011803,0.02372635,108760.0,108750.0,0.33925648]
[1756593012017,0.8007651,108760.0,108750.0,0.33925648]
[1756593013843,0.80075967,108760.0,108750.0,0.33925648]
[1756593016339,0.83781733,108760.0,108750.0,0.33925648]
[1756593017102,0.83781733,108760.0,108750.0,0.33721648]
[1756593017272,0.82056575,108760.0,108750.0,0.33721648]
[1756593017468,0.83781712,108760.0,108750.0,0.33721648]
[1756593018609,0.2446695,108760.0,108750.0,0.33929648]
[1756593018815,0.83781712,108760.0,108750.0,0.33929648]
[1756593021273,0.83781769,108760.0,108750.0,0.33929648]
[1756593025790,0.83781769,108760.0,108750.0,0.60189648]
[1756593026025,0.24467007,108760.0,108750.0,0.60189648]
[1756593026225,0.54412249,108760.0,108750.0,0.60189648]
[1756593028354,0.54413033,108760.0,108750.0,0.60189648]
[1756593028772,0.54413037,108760.0,108750.0,0.60189648]
[1756593029183,0.54413037,108760.0,108750.0,0.78580452]
[1756593029765,0.24755656,108760.0,108750.0,0.78580452]
[1756593029952,0.54413037,108760.0,108750.0,0.78580452]
[1756593032825,0.54413037,108760.0,108750.0,0.60189648]
[1756593035290,0.54413617,108760.0,108750.0,0.60189648]
[1756593038858,0.54413621,108760.0,108750.0,0.60189648]
[1756593039706,0.54413631,108760.0,108750.0,0.60189648]
[1756593040165,0.2475625,108760.0,108750.0,0.78580452]
[1756593040339,0.54413631,108760.0,108750.0,0.78580452]
[1756593041728,0.50707865,108760.0,108750.0,0.78580452]
[1756593044211,0.80365246,108760.0,108750.0,0.78580452]
[1756593045908,0.78351196,108760.0,108750.0,0.78580452]
[1756593046040,0.84153141,108760.0,108750.0,0.78580452]
[1756593046248,0.5449576,108760.0,108750.0,0.78580452]
[1756593049478,0.52769532,108760.0,108750.0,0.78580452]
[1756593049689,0.54495807,108760.0,108750.0,0.78580452]
[1756593050590,0.54495807,108760.0,108750.0,0.60189648]
[1756593053017,0.54495807,108760.0,108750.0,0.60213648]
[1756593053663,0.54495807,108760.0,108750.0,0.44921648]
[1756593053856,0.54495807,108760.0,108750.0,0.60213648]
[1756593054469,0.54495807,108760.0,108750.0,0.44921648]
[1756593054765,0.54495807,108760.0,108750.0,0.60213648]
[1756593055381,0.54495807,108760.0,108750.0,0.60209648]
[1756593059948,0.24838426,108760.0,108750.0,0.60209648]
[1756593060180,0.54495814,108760.0,108750.0,0.60209648]
[1756593062601,0.84153195,108760.0,108750.0,0.60209648]
[1756593065748,0.54495814,108760.0,108750.0,0.57444648]
[1756593065950,0.57261014,108760.0,108750.0,0.57444648]
[1756593067351,0.27603633,108760.0,108750.0,0.57444648]
[1756593067770,0.91261014,108760.0,108750.0,0.57444648]
[1756593069556,0.90973085,108760.0,108750.0,0.57444648]
[1756593069761,0.91260752,108760.0,108750.0,0.57444648]
[1756593070607,0.91260769,108760.0,108750.0,0.57444648]
[1756593071929,1.2091815,108760.0,108750.0,0.42156648]
[1756593072132,1.2091815,108760.0,108750.0,0.57240648]
[1756593072538,1.2091815,108760.0,108750.0,0.57451648]
[1756593072783,1.2091815,108760.0,108750.0,0.42159648]
[1756593072993,1.2091815,108760.0,108750.0,0.57455648]
[1756593075561,1.2091815,108760.0,108750.0,0.57244648]
[1756593076205,1.17130291,108760.0,108750.0,0.57455648]
[1756593080495,1.17130331,108760.0,108750.0,0.57455648]
[1756593081054,1.17130331,108760.0,108750.0,0.42159648]
[1756593081254,1.17130331,108760.0,108750.0,0.57451648]
[1756593083651,1.46787712,108760.0,108750.0,0.35525882]
[1756593083853,1.46787712,108760.0,108750.0,0.50821882]
[1756593084085,1.17130331,108760.0,108750.0,0.50821882]
[1756593084302,1.46787712,108760.0,108750.0,0.50821882]
[1756593085122,1.46787712,108760.0,108750.0,0.24461882]
[1756593088687,1.46787712,108760.0,108750.0,0.24761882]
[1756593091395,1.46784095,108760.0,108750.0,0.24761882]
[1756593091738,1.46784053,108760.0,108750.0,0.24761882]
[1756593092148,1.46784053,108760.0,108750.0,0.24461882]
[1756593094757,1.46784058,108760.0,108750.0,0.24461882]
[1756593095688,1.46784058,108760.0,108750.0,0.07072]
[1756593095897,6.12010095,108760.0,108750.0,0.22364]
[1756593098733,6.12010095,108760.0,108750.0,0.22376]
[1756593098992,6.12010095,108760.0,108750.0,0.07072]
[1756593099201,6.4365143,108760.0,108750.0,0.22376]
[1756593099785,6.13994049,108760.0,108750.0,0.22376]
[1756593100342,6.4375143,108760.0,108750.0,0.22376]
[1756593101047,6.4375143,108760.0,108750.0,0.07072]
[1756593101223,6.4375143,108760.0,108750.0,0.2238]
[1756593101631,6.43105177,108760.0,108750.0,0.2238]
[1756593101815,6.14291225,108760.0,108750.0,0.2238]
[1756593102427,6.15730528,108760.0,108750.0,0.07072]
[1756593102695,6.15730366,108760.0,108750.0,0.2238]
[1756593103225,6.45387747,108760.0,108750.0,0.2238]
[1756593103950,6.45387747,108760.0,108750.0,0.07072]
[1756593104166,6.15730366,108760.0,108750.0,0.22376]
[1756593104765,6.45387747,108760.0,108750.0,0.22376]
[1756593105375,6.45387482,108760.0,108750.0,0.22376]
[1756593106018,6.45099543,108760.0,108750.0,0.22376]
[1756593106218,6.15730101,108760.0,108750.0,0.22376]
[1756593106958,5.90869716,108760.0,108750.0,0.22376]
[1756593107114,5.88885762,108760.0,108750.0,0.22376]
[1756593107314,6.12023039,108760.0,108750.0,0.22376]
[1756593109083,6.12022933,108760.0,108750.0,0.22376]
[1756593110267,6.12022933,108760.0,108750.0,0.2238]
[1756593112342,6.11734994,108760.0,108750.0,0.2238]
[1756593112518,6.12023988,108760.0,108750.0,0.2238]
[1756593113561,6.1614123,108760.0,108750.0,0.2238]
[1756593116018,6.1348593,108760.0,108750.0,0.22674]
[1756593116228,6.16141825,108760.0,108750.0,0.22674]
[1756593122018,6.14703284,108760.0,108750.0,0.22674]
[1756593122466,6.14703364,108760.0,108750.0,0.22674]
[1756593128019,6.10586122,108760.0,108750.0,0.22674]
[1756593128239,6.13071473,108760.0,108750.0,0.22674]
[1756593128645,6.14510745,108760.0,108750.0,0.22674]
[1756593130346,6.44168126,108760.0,108750.0,0.07072]
[1756593130549,0.18392495,108740.0,108730.0,0.35723882]
[1756593130663,1.10021375,108740.0,108730.0,0.51217882]
[1756593131133,1.12787275,108740.0,108730.0,0.51217882]
[1756593132035,1.12787275,108740.0,108730.0,0.51317882]
[1756593132246,1.12787275,108740.0,108730.0,0.36021882]
[1756593132409,1.12787275,108740.0,108730.0,0.25057882]
[1756593132619,1.12788955,108740.0,108730.0,0.25057882]
[1756593133028,1.12788955,108740.0,108730.0,0.09761882]
[1756593133206,1.12788955,108740.0,108730.0,0.25057882]
[1756593134362,0.83131574,108740.0,108730.0,0.25057882]
[1756593134595,1.15409092,108740.0,108730.0,0.09761882]
[1756593134851,5.80000947,108740.0,108730.0,0.25057882]
[1756593135313,5.50343566,108740.0,108730.0,0.25057882]
[1756593135543,5.80000947,108740.0,108730.0,0.25057882]
[1756593136834,5.50343566,108740.0,108730.0,0.25057882]
[1756593137039,5.50343566,108740.0,108730.0,0.2756367]
[1756593138663,5.50344288,108740.0,108730.0,0.2756367]
[1756593139254,5.48358333,108740.0,108730.0,0.2756367]
[1756593140612,5.48358333,108740.0,108730.0,0.25057882]
[1756593143250,5.4663372,108740.0,108730.0,0.25057882]
[1756593143463,5.48357863,108740.0,108730.0,0.25057882]
[1756593144315,5.48357833,108740.0,108730.0,0.25057882]
[1756593146912,5.82357833,108740.0,108730.0,0.25057882]
[1756593152387,5.82357833,108740.0,108730.0,0.24565882]
[1756593152603,5.82357833,108740.0,108730.0,0.24868882]
[1756593152765,5.82357833,108740.0,108730.0,0.25076882]
[1756593152963,6.12015214,108740.0,108730.0,0.25076882]
[1756593153166,5.82357833,108740.0,108730.0,0.25076882]
[1756593153368,5.84344353,108740.0,108730.0,0.25076882]
[1756593153588,5.82357833,108740.0,108730.0,0.25076882]
[1756593154144,5.82358225,108740.0,108730.0,0.25076882]
[1756593154377,6.1400225,108740.0,108730.0,0.25076882]
[1756593154965,6.12015606,108740.0,108730.0,0.25076882]
[1756593156260,6.14002584,108740.0,108730.0,0.25076882]
[1756593159118,6.14002584,108740.0,108730.0,0.24868882]
[1756593164644,6.12278948,108740.0,108730.0,0.24868882]
[1756593164761,6.14005427,108740.0,108730.0,0.24868882]
[1756593167639,6.14007379,108740.0,108730.0,0.24856882]
[1756593170185,6.14007379,108740.0,108730.0,0.25068882]
[1756593171656,6.13719413,108740.0,108730.0,0.25068882]
[1756593171833,6.14007382,108740.0,108730.0,0.25068882]
[1756593173295,6.18244306,108740.0,108730.0,0.25068882]
[1756593174255,6.18244306,108740.0,108730.0,0.2757577]
[1756593175362,6.18244038,108740.0,108730.0,0.2757577]
[1756593175764,6.17956061,108740.0,108730.0,0.2757577]
[1756593175963,6.1824403,108740.0,108730.0,0.2757577]
[1756593178475,6.1824403,108740.0,108730.0,0.25068882]
[1756593183874,6.1824403,108740.0,108730.0,0.17992882]
[1756593184908,6.18243914,108740.0,108730.0,0.17992882]
[1756593185698,5.29271771,108740.0,108730.0,0.17992882]
[1756593185930,5.88586533,108740.0,108730.0,0.17992882]
[1756593195467,5.86572404,108740.0,108730.0,0.17992882]
[1756593195674,5.8858677,108740.0,108730.0,0.17992882]
[1756593198812,5.86860404,108740.0,108730.0,0.17992882]
[1756593199058,5.88586849,108740.0,108730.0,0.17992882]
[1756593200015,5.8829888,108740.0,108730.0,0.17992882]
[1756593202678,5.86572464,108740.0,108730.0,0.17992882]
[1756593202898,5.88298907,108740.0,108730.0,0.2049977]
[1756593206167,5.87651491,108740.0,108730.0,0.2049977]
[1756593206379,5.88298906,108740.0,108730.0,0.2049977]
[1756593207173,5.88298907,108740.0,108730.0,0.2049977]
[1756593210038,5.88298906,108740.0,108730.0,0.2049977]
[1756593211305,5.88298906,108740.0,108730.0,0.17992882]
[1756593213414,5.88298917,108740.0,108730.0,0.17992882]
[1756593216102,5.88298917,108740.0,108730.0,0.02193882]
[1756593216321,5.88298917,108740.0,108730.0,0.17473882]
[1756593216917,5.85925048,108740.0,108730.0,0.17473882]
[1756593217086,5.88298888,108740.0,108730.0,0.17473882]
[1756593217613,5.86572459,108740.0,108730.0,0.17473882]
[1756593217819,5.88298898,108740.0,108730.0,0.17473882]
[1756593219211,5.66914103,108740.0,108730.0,0.17473882]
[1756593219421,5.69680203,108740.0,108730.0,0.17473882]
[1756593219602,5.88072698,108740.0,108730.0,0.1996007]
[1756593219913,5.88072698,108740.0,108730.0,0.2027207]
[1756593222459,5.88072698,108740.0,108730.0,0.17785882]
[1756593222961,5.83835774,108740.0,108730.0,0.17785882]
[1756593227711,5.81461924,108740.0,108730.0,0.17785882]
[1756593227946,5.83835766,108740.0,108730.0,0.17785882]
[1756593228343,5.88046584,108740.0,108730.0,0.02505882]
[1756593228551,5.88046584,108740.0,108730.0,0.17785882]
[1756593232828,5.88046584,108740.0,108730.0,0.2048707]
[1756593235394,5.88046584,108740.0,108730.0,0.18000882]
[1756593238008,5.88046584,108740.0,108730.0,0.25076882]
[1756593238349,5.87399052,108740.0,108730.0,0.25076882]
[1756593238553,5.88046418,108740.0,108730.0,0.25076882]
[1756593239300,5.8804646,108740.0,108730.0,0.25076882]
[1756593241382,5.8804646,108740.0,108730.0,0.09796882]
[1756593241578,5.8804646,108740.0,108730.0,0.24861882]
[1756593243423,6.17703841,108740.0,108730.0,0.24861882]
[1756593244260,6.17703841,108740.0,108730.0,0.2734807]
[1756593244926,6.17703841,108740.0,108730.0,0.2756307]
[1756593246135,6.17703841,108740.0,108730.0,0.25076882]
[1756593247760,6.17703841,108740.0,108730.0,0.18000882]
[1756593247968,6.17703875,108740.0,108730.0,0.18000882]
[1756593256276,6.17703875,108740.0,108730.0,0.02505882]
[1756593256481,6.17703875,108740.0,108730.0,0.17785882]
[1756593257923,6.13493057,108740.0,108730.0,0.17785882]
[1756593258555,6.13493321,108740.0,108730.0,0.17785882]
[1756593259316,6.13493322,108740.0,108730.0,0.17785882]
[1756593263344,6.17723616,108740.0,108730.0,0.17785882]
[1756593268318,6.15329879,108740.0,108730.0,0.17785882]
[1756593269472,6.1468242,108740.0,108730.0,0.17785882]
[1756593269677,6.15329878,108740.0,108730.0,0.17785882]
[1756593271330,6.15329878,108740.0,108730.0,0.17991882]
[1756593276640,6.1532988,108740.0,108730.0,0.17991882]
[1756593277633,6.1532988,108740.0,108730.0,0.2049867]
[1756593280007,6.14682419,108740.0,108730.0,0.2049867]
[1756593280213,6.1793116,108740.0,108730.0,0.2049867]
[1756593281114,6.17931157,108740.0,108730.0,0.2049867]
[1756593281492,6.17931157,108740.0,108730.0,0.17991882]
[1756593282866,5.28959014,108740.0,108730.0,0.17991882]
[1756593283072,6.17931157,108740.0,108730.0,0.17991882]
[1756593288199,6.17931157,108740.0,108730.0,0.02505882]
[1756593288409,6.17931157,108740.0,108730.0,0.17781882]
[1756593289638,6.17931154,108740.0,108730.0,0.17781882]
[1756593290946,6.17931151,108740.0,108730.0,0.17781882]
[1756593292176,6.17931151,108740.0,108730.0,0.17988882]
[1756593292993,6.17931151,108740.0,108730.0,0.2049537]
[1756593293195,6.17931151,108740.0,108730.0,0.17988882]
[1756593301200,6.16204588,108740.0,108730.0,0.17988882]
[1756593301356,6.17931136,108740.0,108730.0,0.17988882]
[1756593302000,6.16204588,108740.0,108730.0,0.17988882]
[1756593302217,6.17931136,108740.0,108730.0,0.17988882]
[1756593307790,6.17931129,108740.0,108730.0,0.17988882]
[1756593308094,6.17931129,108740.0,108730.0,0.2049537]
[1756593309020,6.17931129,108740.0,108730.0,0.17988882]
[1756593311283,6.17931134,108740.0,108730.0,0.17988882]
[1756593313032,6.1370084,108740.0,108730.0,0.17988882]
[1756593318165,6.1171191,108740.0,108730.0,0.17988882]
[1756593318313,6.17750513,108740.0,108730.0,0.17988882]
[1756593321952,6.17103058,108740.0,108730.0,0.17988882]
[1756593322160,6.17750511,108740.0,108730.0,0.17988882]
[1756593322395,5.93604451,108740.0,108730.0,0.2049537]
[1756593325642,5.93604452,108740.0,108730.0,0.2049537]
[1756593332751,5.92956971,108740.0,108730.0,0.2049537]
[1756593333045,5.93604415,108740.0,108730.0,0.2049537]
[1756593333181,5.92956971,108740.0,108730.0,0.2049537]
[1756593333375,5.93604415,108740.0,108730.0,0.2049537]
[1756593338806,5.93604415,108740.0,108730.0,0.17988882]
[1756593343400,5.91877897,108740.0,108730.0,0.17988882]
[1756593343611,5.93604415,108740.0,108730.0,0.17988882]
[1756593344744,5.93604415,108740.0,108730.0,0.17781882]
[1756593346234,5.04632272,108740.0,108730.0,0.17981882]
[1756593346466,5.93604415,108740.0,108730.0,0.17981882]
[1756593346729,5.93604415,108740.0,108730.0,0.2076428]
[1756593347985,5.89554786,108740.0,108730.0,0.2076428]
[1756593348536,5.89554761,108740.0,108730.0,0.17981882]
[1756593349127,5.89554761,108740.0,108730.0,0.17781882]
[1756593353310,5.93742375,108740.0,108730.0,0.17781882]
[1756593353976,5.93094931,108740.0,108730.0,0.17781882]
[1756593354183,5.93742378,108740.0,108730.0,0.17781882]
[1756593355002,5.93742378,108740.0,108730.0,0.2054428]
[1756593355303,5.93742378,108740.0,108730.0,0.17781882]
[1756593357648,5.93742379,108740.0,108730.0,0.17781882]
[1756593359948,5.93742379,108740.0,108730.0,0.02505882]
[1756593360109,5.93742379,108740.0,108730.0,0.17777882]
[1756593360538,5.93742379,108740.0,108730.0,0.02505882]
[1756593360738,5.93742379,108740.0,108730.0,0.17777882]
[1756593363568,5.92015858,108740.0,108730.0,0.17777882]
[1756593363775,5.93742408,108740.0,108730.0,0.17777882]
[1756593365826,5.93742408,108740.0,108730.0,0.2074488]
[1756593366957,5.04770265,108740.0,108730.0,0.2074488]
[1756593367176,5.64085027,108740.0,108730.0,0.2074488]
[1756593372696,5.64085027,108740.0,108730.0,0.2782088]
[1756593374340,5.64084895,108740.0,108730.0,0.2782088]
[1756593374551,5.64084843,108740.0,108730.0,0.2782088]
[1756593378600,5.04770081,108740.0,108730.0,0.2782088]
[1756593378799,5.64084843,108740.0,108730.0,0.2782088]
[1756593380468,5.64084843,108740.0,108730.0,0.1254888]
[1756593380678,5.64084843,108740.0,108730.0,0.25058882]
[1756593381854,5.64084843,108740.0,108730.0,0.09786882]
[1756593382271,5.64084843,108740.0,108730.0,0.25058882]
[1756593382650,5.61483572,108740.0,108730.0,0.25058882]
[1756593385063,5.59756929,108740.0,108730.0,0.25058882]
[1756593385272,5.61482712,108740.0,108730.0,0.25058882]
[1756593385503,5.61482712,108740.0,108730.0,0.2784138]
[1756593386016,5.61482662,108740.0,108730.0,0.2784138]
[1756593387065,5.61482662,108740.0,108730.0,0.2076538]
[1756593388058,5.61482662,108740.0,108730.0,0.0549338]
[1756593388257,5.61482662,108740.0,108730.0,0.17982882]
[1756593388711,5.61482594,108740.0,108730.0,0.17982882]
[1756593392294,5.61482558,108740.0,108730.0,0.17982882]
[1756593394222,5.61482558,108740.0,108730.0,0.02710882]
[1756593394433,5.61482558,108740.0,108730.0,0.17982882]
[1756593395136,5.02167796,108740.0,108730.0,0.2076538]
[1756593395355,5.61482558,108740.0,108730.0,0.2076538]
[1756593395786,5.59109761,108740.0,108730.0,0.2076538]
[1756593396008,5.61482611,108740.0,108730.0,0.2076538]
[1756593398397,5.61481776,108740.0,108730.0,0.2076538]
[1756593399387,5.60834635,108740.0,108730.0,0.2076538]
[1756593399600,5.61481827,108740.0,108730.0,0.2076538]
[1756593406182,5.02167065,108740.0,108730.0,0.2076538]
[1756593406387,0.54118204,108740.0,108730.0,0.2076538]
[1756593406594,0.84423625,108740.0,108730.0,0.0549338]
[1756593406806,0.84423625,108740.0,108730.0,0.21003307]
[1756593407019,0.84423625,108740.0,108730.0,0.2077338]
[1756593407232,0.84423625,108740.0,108730.0,0.2354318]
[1756593409890,0.54766244,108740.0,108730.0,0.2354318]
[1756593410053,0.84423625,108740.0,108730.0,0.2354318]
[1756593413197,0.84423625,108740.0,108730.0,0.0825918]
[1756593413338,0.84423625,108740.0,108730.0,0.2354318]
[1756593413540,0.84421044,108740.0,108730.0,0.2354318]
[1756593416667,0.84421044,108740.0,108730.0,0.41937367]
[1756593417293,0.84420643,108740.0,108730.0,0.41937367]
[1756593417714,0.82696449,108740.0,108730.0,0.41937367]
[1756593417877,0.8442061,108740.0,108730.0,0.41937367]
[1756593420896,0.84420566,108740.0,108730.0,0.41937367]
[1756593421321,0.3637069,108740.0,108730.0,0.41937367]
[1756593421532,0.66028071,108740.0,108730.0,0.41937367]
[1756593423154,0.66028071,108740.0,108730.0,0.68197367]
[1756593426402,0.65381542,108740.0,108730.0,0.41937367]
[1756593426605,0.65381423,108740.0,108730.0,0.41937367]
[1756593427435,0.6538142,108740.0,108730.0,0.41937367]
[1756593427994,0.35724039,108740.0,108730.0,0.41937367]
[1756593430724,0.01724039,108740.0,108730.0,0.41937367]
[1756593434391,0.35724039,108740.0,108730.0,0.51235368]
[1756593434584,0.01724039,108740.0,108730.0,0.51235368]
[1756593434811,0.34,108750.0,108740.0,0.20486377]
[1756593434975,0.21376789,108770.0,108760.0,0.02093882]
[1756593435206,5.38602397,108770.0,108760.0,0.24461882]
[1756593435408,5.38602397,108770.0,108760.0,0.27227182]
[1756593436196,5.38602397,108770.0,108760.0,0.45616295]
[1756593436433,5.98217159,108770.0,108760.0,0.45616295]
[1756593436645,5.98217159,108770.0,108760.0,0.52048573]
[1756593436853,5.98217159,108770.0,108760.0,0.52365573]
[1756593437271,5.97570357,108770.0,108760.0,0.52365573]
[1756593437479,5.98216896,108770.0,108760.0,0.52365573]
[1756593437919,5.98415783,108770.0,108760.0,0.52365573]
[1756593438133,5.79108877,108770.0,108760.0,0.52572573]
[1756593438344,5.78608877,108770.0,108760.0,0.52572573]
[1756593438992,5.19494115,108770.0,108760.0,0.52572573]
[1756593439181,5.80047931,108770.0,108760.0,0.52572573]
[1756593439941,5.98435354,108770.0,108760.0,0.52572573]
[1756593440438,5.80047931,108770.0,108760.0,0.52572573]
[1756593440849,5.59697548,108770.0,108760.0,0.52572573]
[1756593441270,0.97124048,108770.0,108760.0,0.52572573]
[1756593441452,0.96477509,108770.0,108760.0,0.52572573]
[1756593442327,0.37162747,108770.0,108760.0,0.52572573]
[1756593442542,0.65381074,108770.0,108760.0,0.52572573]
[1756593443434,0.65381074,108770.0,108760.0,0.52576573]
[1756593444672,0.85636485,108770.0,108760.0,0.52576573]
[1756593445258,1.15293866,108770.0,108760.0,0.52576573]
[1756593445741,1.15293866,108770.0,108760.0,0.52369573]
[1756593445970,1.15293866,108770.0,108760.0,0.52583573]
[1756593447919,1.13570173,108770.0,108760.0,0.52583573]
[1756593448138,1.15291299,108770.0,108760.0,0.52583573]
[1756593448770,1.13570173,108770.0,108760.0,0.52583573]
[1756593448999,1.15291288,108770.0,108760.0,0.52583573]
[1756593454408,0.67246484,108770.0,108760.0,0.52583573]
[1756593455633,0.85633907,108770.0,108760.0,0.52583573]
[1756593458202,0.37589103,108770.0,108760.0,0.52583573]
[1756593458398,0.38235037,108770.0,108760.0,0.78843573]
[1756593458632,0.65525369,108770.0,108760.0,0.78843573]
[1756593458813,0.67893794,108770.0,108760.0,0.78843573]
[1756593459167,0.6724786,108770.0,108760.0,0.78843573]
[1756593459381,0.67893896,108770.0,108760.0,0.78843573]
[1756593460127,0.67893896,108770.0,108760.0,0.63547573]
[1756593460128,0.86281319,108770.0,108760.0,0.63547573]
[1756593460327,1.159387,108770.0,108760.0,0.78879573]
[1756593469057,0.819387,108770.0,108760.0,0.78879573]
[1756593469376,0.81943849,108770.0,108760.0,0.78879573]
[1756593475838,1.15943849,108770.0,108760.0,0.78879573]
[1756593476524,1.15944261,108770.0,108760.0,0.78879573]
[1756593478172,0.56629499,108770.0,108760.0,0.78879573]
[1756593478326,1.15944261,108770.0,108760.0,0.78879573]
[1756593479911,1.14217539,108770.0,108760.0,0.78879573]
[1756593480078,1.15944481,108770.0,108760.0,0.78879573]
[1756593483723,0.862871,108770.0,108760.0,0.78879573]
[1756593484376,0.67899677,108770.0,108760.0,0.78879573]
[1756593484735,0.862871,108770.0,108760.0,0.78879573]
[1756593485962,0.86287189,108770.0,108760.0,0.78879573]
[1756593486376,1.1594457,108770.0,108760.0,0.78879573]
[1756593489592,1.15297177,108770.0,108760.0,0.78879573]
[1756593489805,1.15944803,108770.0,108760.0,0.78879573]
[1756593490398,1.15944798,108770.0,108760.0,0.78879573]
[1756593497342,0.86287417,108770.0,108760.0,0.78879573]
[1756593498372,1.15944798,108770.0,108760.0,0.78879573]
[1756593498783,1.15944798,108770.0,108760.0,0.78855573]
[1756593500420,1.15944557,108770.0,108760.0,0.78855573]
[1756593500915,1.15944556,108770.0,108760.0,0.78855573]
[1756593503184,0.56629794,108770.0,108760.0,0.78855573]
[1756593503396,1.15944556,108770.0,108760.0,0.78855573]
[1756593504406,0.86287175,108770.0,108760.0,0.52595573]
[1756593511090,0.86287146,108770.0,108760.0,0.52595573]
[1756593511486,1.15944527,108770.0,108760.0,0.52595573]
[1756593514289,0.86287146,108770.0,108760.0,0.52595573]
[1756593514700,1.15944527,108770.0,108760.0,0.52595573]
[1756593514910,0.67899723,108770.0,108760.0,0.52595573]
[1756593515128,0.67899723,108770.0,108760.0,0.78855573]
[1756593517254,0.38242342,108770.0,108760.0,0.78855573]
[1756593517474,0.67899723,108770.0,108760.0,0.78855573]
[1756593518073,0.37594791,108770.0,108760.0,0.78855573]
[1756593518334,0.67899746,108770.0,108760.0,0.78855573]
[1756593521746,0.66172974,108770.0,108760.0,0.78855573]
[1756593521956,0.67899922,108770.0,108760.0,0.78855573]
[1756593525484,0.86287345,108770.0,108760.0,0.78855573]
[1756593526100,0.67899922,108770.0,108760.0,0.78855573]
[1756593528893,0.67900053,108770.0,108760.0,0.78855573]
[1756593530264,0.86287476,108770.0,108760.0,0.78855573]
[1756593530660,0.67900053,108770.0,108760.0,0.78855573]
[1756593532489,0.35867988,108770.0,108760.0,0.78855573]
[1756593532677,0.67900049,108770.0,108760.0,0.78855573]
[1756593537634,0.86287472,108770.0,108760.0,0.78855573]
[1756593539622,0.86287469,108770.0,108760.0,0.78855573]
[1756593540536,0.56630088,108770.0,108760.0,0.78855573]
[1756593540713,0.86287469,108770.0,108760.0,0.78855573]
[1756593541893,0.84560429,108770.0,108760.0,0.78855573]
[1756593542118,0.86287462,108770.0,108760.0,0.78855573]
[1756593542716,0.85639825,108770.0,108760.0,0.78855573]
[1756593542920,0.86287462,108770.0,108760.0,0.78855573]
[1756593544742,0.86287462,108770.0,108760.0,0.52595573]
[1756593552682,0.83912792,108770.0,108760.0,0.52595573]
[1756593552886,0.86287462,108770.0,108760.0,0.52595573]
[1756593556439,1.15944843,108770.0,108760.0,0.52595573]
[1756593557729,0.9755742,108770.0,108760.0,0.52595573]
[1756593558334,1.15944843,108770.0,108760.0,0.52595573]
[1756593559735,1.15944074,108770.0,108760.0,0.52595573]
[1756593560551,1.15944076,108770.0,108760.0,0.52595573]
[1756593562309,0.97556653,108770.0,108760.0,0.52595573]
[1756593563322,0.9518275,108770.0,108760.0,0.52595573]
[1756593563677,1.15943798,108770.0,108760.0,0.52595573]
[1756593564260,0.8007581,108770.0,108760.0,0.52595573]
[1756593564653,0.63231556,108770.0,108760.0,0.52595573]
[1756593569646,0.81618979,108770.0,108760.0,0.52595573]
[1756593570343,0.22304217,108770.0,108760.0,0.52595573]
[1756593570572,0.81618979,108770.0,108760.0,0.52595573]
[1756593571114,0.63231556,108770.0,108760.0,0.52595573]
[1756593572641,0.97231556,108770.0,108760.0,0.52595573]
[1756593574000,0.94857931,108770.0,108760.0,0.52595573]
[1756593574201,0.97231417,108770.0,108760.0,0.52595573]
[1756593578501,1.1561884,108770.0,108760.0,0.52595573]
[1756593584804,1.1561882,108770.0,108760.0,0.52595573]
[1756593585033,1.15618766,108770.0,108760.0,0.52595573]
[1756593585892,0.97231343,108770.0,108760.0,0.52595573]
[1756593587278,0.37916581,108770.0,108760.0,0.52595573]
[1756593587483,0.97231343,108770.0,108760.0,0.52595573]
[1756593589811,1.15618766,108770.0,108760.0,0.52595573]
[1756593591553,0.61688174,108770.0,108760.0,0.52595573]
[1756593592329,0.80075597,108770.0,108760.0,0.52595573]
[1756593592726,0.81471695,108770.0,108760.0,0.52595573]
[1756593595419,1.13745574,108770.0,108760.0,0.52595573]
[1756593595644,1.15471685,108770.0,108760.0,0.52595573]
[1756593604898,1.13745579,108770.0,108760.0,0.52595573]
[1756593605203,1.15471701,108770.0,108760.0,0.52595573]
[1756593611541,1.15471701,108770.0,108760.0,0.37287573]
[1756593611779,1.15471701,108770.0,108760.0,0.52571573]
[1756593615667,1.13745578,108770.0,108760.0,0.52571573]
[1756593615874,1.154717,108770.0,108760.0,0.52571573]
[1756593619267,1.15471701,108770.0,108760.0,0.52571573]
[1756593619903,0.56156939,108770.0,108760.0,0.52571573]
[1756593620103,1.15471701,108770.0,108760.0,0.52571573]
[1756593626483,1.15471505,108770.0,108760.0,0.52571573]
[1756593626897,1.13745525,108770.0,108760.0,0.52571573]
[1756593627102,1.15471502,108770.0,108760.0,0.52571573]
[1756593636589,0.97084079,108770.0,108760.0,0.52571573]
[1756593636787,1.15247653,108770.0,108760.0,0.52571573]
[1756593637199,1.13521676,108770.0,108760.0,0.52571573]
[1756593637370,1.15247545,108770.0,108760.0,0.52571573]
[1756593639713,0.96860122,108770.0,108760.0,0.52571573]
[1756593640654,1.15247545,108770.0,108760.0,0.52571573]
[1756593644533,0.3754536,108770.0,108760.0,0.52571573]
[1756593644715,0.96860122,108770.0,108760.0,0.52571573]
[1756593647776,0.95134223,108770.0,108760.0,0.52571573]
[1756593647997,0.96859639,108770.0,108760.0,0.52571573]
[1756593650169,1.15247062,108770.0,108760.0,0.52571573]
[1756593652287,0.96859639,108770.0,108760.0,0.52571573]
[1756593656671,1.15247062,108770.0,108760.0,0.52571573]
[1756593657353,0.96859639,108770.0,108760.0,0.52571573]
[1756593658456,0.95133881,108770.0,108760.0,0.52571573]
[1756593658677,0.96858868,108770.0,108760.0,0.52571573]
[1756593658926,1.15246291,108770.0,108760.0,0.52571573]
[1756593659157,1.14599438,108770.0,108760.0,0.52571573]
[1756593659394,0.96212015,108770.0,108760.0,0.52571573]
[1756593659643,0.36897253,108770.0,108760.0,0.61869574]
[1756593659890,0.66554634,108770.0,108760.0,0.61869574]
[1756593661310,0.66554658,108770.0,108760.0,0.61869574]